Workbook

Sheet Data Entry
D4: Corporate Analysis
D6: The shaded cells contain formulas and are automatically calculated by Excel. DO NOT enter any information into them. Enter numbers where they are BLUE.
D7: This sheet serves to collect fundamental information not included on the balance sheet or income statement. Note that changing data in one place may alter other data in the sheet. This allows you to immediately see the effect on future figures by making a change in current figures. Use the Screen Split function to view changes.
E15: Year of Projection | G15: 2006
E16: Corporation Type (C or S)? | G16: C | H16: =IF(data2ab="C","'C' Corporation format selected; income taxes WILL be computed","'S' Corporation format selected; income taxes WILL NOT be computed") -> 'C' Corporation format selected; income taxes WILL be computed
E17: Enter Period | G17: 1 | H17: Enter Period: 1 = Quarter, 2 = Year
E18: Operating Data | I18: =IF($G$17=1,CONCATENATE("1st ","Qtr"),IF($G$17=2,CONCATENATE("1st ","Year"),"Incorrect Entry")) -> 1st Qtr | J18: =IF($G$17=1,CONCATENATE("2nd ","Qtr"),IF($G$17=2,CONCATENATE("2nd ","Year"),"Incorrect Entry")) -> 2nd Qtr | K18: =IF($G$17=1,CONCATENATE("3rd ","Qtr"),IF($G$17=2,CONCATENATE("3rd ","Year"),"Incorrect Entry")) -> 3rd Qtr | L18: =IF($G$17=1,CONCATENATE("4th ","Qtr"),IF($G$17=2,CONCATENATE("4th ","Year"),"Incorrect Entry")) -> 4th Qtr
F19: Days sales in accounts receivable | I19: 30 | J19: 30 | K19: 30 | L19: 30
F20: Days materials cost in inventory | I20: 30 | J20: 30 | K20: 30 | L20: 30
F21: Days finished goods in inventory | I21: 45 | J21: 45 | K21: 45 | L21: 45
F22: Days materials cost in payables | I22: 60 | J22: 60 | K22: 60 | L22: 60
F23: Days payroll expense accrued | I23: 7 | J23: 7 | K23: 7 | L23: 7
F24: Days operating expense accrued | I24: 20 | J24: 20 | K24: 20 | L24: 20
E26: Expense Data
F27: Direct labor as % of sales | G27: 16.00% | H27: of sales | I27: ='Income Statement'!H15*$G27 -> $320,000 | J27: ='Income Statement'!I15*$G27 -> $240,000 | K27: ='Income Statement'!J15*$G27 -> $208,000 | L27: ='Income Statement'!K15*$G27 -> $321,616
F28: Other payroll as % of sales | G28: 12.00% | H28: of sales | I28: ='Income Statement'!H15*$G28 -> $240,000 | J28: ='Income Statement'!I15*$G28 -> $180,000 | K28: ='Income Statement'!J15*$G28 -> $156,000 | L28: ='Income Statement'!K15*$G28 -> $241,212
F29: Payroll taxes as % of payroll | G29: 10.00% | H29: of payroll | I29: =SUM(I$27:I$28)*$G29 -> $56,000 | J29: $42,000 | K29: $36,400 | L29: $56,283
F30: Insurance as % of payroll | G30: 5.00% | H30: of payroll | I30: $28,000 | J30: $21,000 | K30: $18,200 | L30: $28,141
F31: Legal/accounting as % of sales | G31: 2.00% | H31: of sales | I31: ='Income Statement'!H15*$G31 -> $40,000 | J31: ='Income Statement'!I15*$G31 -> $30,000 | K31: ='Income Statement'!J15*$G31 -> $26,000 | L31: ='Income Statement'!K15*$G31 -> $40,202
F32: Office overhead as % of sales | G32: 3.00% | H32: of sales | I32: ='Income Statement'!H15*$G32 -> $60,000 | J32: ='Income Statement'!I15*$G32 -> $45,000 | K32: ='Income Statement'!J15*$G32 -> $39,000 | L32: ='Income Statement'!K15*$G32 -> $60,303
E34: ="Financing Data ("&FIXED(H18,0,TRUE)&" on)" -> Financing Data (0 on) | H34: Depreciation | I34: Capital | J34: Current Portion | K34: LT Portion | L34: Rate
F35: Long term debt | J35: $100,000 | K35: $500,000 | L35: 10.00%
F36: Short-term debt | J36: $50,000 | L36: 10.00%
F37: Capital stock issued | I37: $100,000
F38: Additional paid-in capital | I38: $50,000
F39: Accumulated depreciation | H39: $400,000

Sheet Income Statement
D5: The information necessary to fill in this sheet can be found on any standard income statement.
F12: ='Balance Sheet'!F13 ->  | H12: Forecasted | L12: Total
H13: ='Data Entry'!I18 -> 1st Qtr | I13: ='Data Entry'!J18 -> 2nd Qtr | J13: ='Data Entry'!K18 -> 3rd Qtr | K13: ='Data Entry'!L18 -> 4th Qtr | L13: =IF('Data Entry'!$G$17=1,"4 Quarters",IF('Data Entry'!$G$17=2,"4 Years","No Entry")) -> 4 Quarters
E14: Sales
F15: Sales | H15: $2,000,000 | I15: $1,500,000 | J15: $1,300,000 | K15: $2,010,100 | L15: =SUM(H15:K15) -> $6,810,100
F16: Cost of sales | H16: =SUM(H51:H53) -> $945,000 | I16: =SUM(I51:I53) -> $865,000 | J16: =SUM(J51:J53) -> $833,000 | K16: =SUM(K51:K53) -> $1,071,616 | L16: =SUM(H16:K16) -> $3,714,616
G18: Gross profit | H18: =H15-H16 -> $1,055,000 | I18: =I15-I16 -> $635,000 | J18: =J15-J16 -> $467,000 | K18: =K15-K16 -> $938,484 | L18: =SUM(H18:K18) -> $3,095,484
E20: Expenses
F21: Operating expenses | H21: =SUM('Data Entry'!I28:I32) -> $424,000 | I21: =SUM('Data Entry'!J28:J32) -> $318,000 | J21: =SUM('Data Entry'!K28:K32) -> $275,600 | K21: =SUM('Data Entry'!L28:L32) -> $426,141 | L21: =SUM(H21:K21) -> $1,443,741
F22: Interest | H22: =H60+H61 -> $16,250 | I22: =I60+I61 -> $16,250 | J22: =J60+J61 -> $16,250 | K22: =K60+K61 -> $16,250 | L22: =SUM(H22:K22) -> $65,000
F23: Depreciation | H23: =H56+H57 -> $32,500 | I23: =I56+I57 -> $33,958 | J23: =J56+J57 -> $33,958 | K23: =K56+K57 -> $33,958 | L23: =SUM(H23:K23) -> $134,374
F24: Amortization | H24: $1,250 | I24: $1,250 | J24: $1,250 | K24: $1,250 | L24: =SUM(H24:K24) -> $5,000
G25: Total expenses | H25: =SUM(H21:H24) -> $474,000 | I25: =SUM(I21:I24) -> $369,458 | J25: =SUM(J21:J24) -> $327,058 | K25: =SUM(K21:K24) -> $477,599 | L25: =SUM(H25:K25) -> $1,648,115
G27: Operating income | H27: =H18-H25 -> $581,000 | I27: =I18-I25 -> $265,542 | J27: =J18-J25 -> $139,942 | K27: =K18-K25 -> $460,885 | L27: =SUM(H27:K27) -> $1,447,369
E29: Other income and expenses
F30: Gain (loss) on sale of assets | H30: $100,000 | I30: $10,000 | J30: $3,000 | K30: $405,700 | L30: =SUM(H30:K30) -> $518,700
F31: Other (net) | H31: $20,000 | I31: $50,000 | J31: $100,000 | K31: $200,000 | L31: =SUM(H31:K31) -> $370,000
G32: Subtotal | H32: =SUM(H30:H31) -> $120,000 | I32: =SUM(I30:I31) -> $60,000 | J32: =SUM(J30:J31) -> $103,000 | K32: =SUM(K30:K31) -> $605,700 | L32: =SUM(H32:K32) -> $888,700
G35: Income before tax | H35: =H27+H32 -> $701,000 | I35: =I27+I32 -> $325,542 | J35: =J27+J32 -> $242,942 | K35: =K27+K32 -> $1,066,585 | L35: =SUM(H35:K35) -> $2,336,069
F36: Please enter a tax percentage
F37: Taxes @ | G37: 30% | H37: =IF(data2ab="C",+H35*data125,0) -> $210,300 | I37: =IF(data2ab="C",+I35*data125,0) -> $97,663 | J37: =IF(data2ab="C",+J35*data125,0) -> $72,883 | K37: =IF(data2ab="C",+K35*data125,0) -> $319,975 | L37: =SUM(H37:K37) -> $700,821
G39: Net income | H39: =H35-H37 -> $490,700 | I39: =I35-I37 -> $227,879 | J39: =J35-J37 -> $170,059 | K39: =K35-K37 -> $746,609 | L39: =SUM(H39:K39) -> $1,635,248
F41: =IF(data2ab="C","Retained earnings-beginning","Undistributed earnings-beginning ") -> Retained earnings-beginning | H41: ='Balance Sheet'!H62 -> $1,400,000 | I41: ='Balance Sheet'!I62 -> $1,890,700 | J41: ='Balance Sheet'!J62 -> $2,118,579 | K41: ='Balance Sheet'!K62 -> $2,288,638 | L41: ='Balance Sheet'!H62 -> $1,400,000
F43: =IF(data2ab="C","Dividends paid","Distributions to owners ") -> Dividends paid | H43: $0 | I43: $0 | J43: $0 | K43: $50,000 | L43: =SUM(H43:K43) -> $50,000
F45: =IF(data2ab="C","Retained earnings-ending","Undistributed earnings-ending ") -> Retained earnings-ending | H45: =ROUND(H39+H41-H43,0) -> $1,890,700 | I45: =ROUND(I39+I41-I43,0) -> $2,118,579 | J45: =ROUND(J39+J41-J43,0) -> $2,288,638 | K45: =ROUND(K39+K41-K43,0) -> $2,985,247 | L45: =ROUND(L39+L41-L43,0) -> $2,985,248
E48: Detailed Supporting Information
E50: Cost of sales
G51: Direct labor | H51: ='Data Entry'!I27 -> $320,000 | I51: ='Data Entry'!J27 -> $240,000 | J51: ='Data Entry'!K27 -> $208,000 | K51: ='Data Entry'!L27 -> $321,616 | L51: =SUM(H51:K51) -> $1,089,616
G52: Materials | H52: $500,000 | I52: $500,000 | J52: $500,000 | K52: $500,000 | L52: =SUM(H52:K52) -> $2,000,000
G53: Other costs | H53: $125,000 | I53: $125,000 | J53: $125,000 | K53: $250,000 | L53: =SUM(H53:K53) -> $625,000
E55: Depreciation: Enter the numbers of years.
F56: 30 | G56: year Buildings | H56: =IF(ISERR(ROUND(SLN('Balance Sheet'!H25,0,$F$56)/4,0)),0,ROUND(SLN('Balance Sheet'!H25,0,$F$56)/4,0)) -> $12,500 | I56: =IF(ISERR(ROUND(SLN('Balance Sheet'!I25,0,$F$56)/4,0)),0,ROUND(SLN('Balance Sheet'!I25,0,$F$56)/4,0)) -> $12,083 | J56: =IF(ISERR(ROUND(SLN('Balance Sheet'!J25,0,$F$56)/4,0)),0,ROUND(SLN('Balance Sheet'!J25,0,$F$56)/4,0)) -> $12,083 | K56: =IF(ISERR(ROUND(SLN('Balance Sheet'!K25,0,$F$56)/4,0)),0,ROUND(SLN('Balance Sheet'!K25,0,$F$56)/4,0)) -> $12,083 | L56: =SUM(H56:K56) -> $48,749
F57: 10 | G57: year Equipment | H57: =IF(ISERR(ROUND(SLN('Balance Sheet'!H26,0,$F$57)/4,0)),0,ROUND(SLN('Balance Sheet'!H26,0,$F$57)/4,0)) -> $20,000 | I57: =IF(ISERR(ROUND(SLN('Balance Sheet'!I26,0,$F$57)/4,0)),0,ROUND(SLN('Balance Sheet'!I26,0,$F$57)/4,0)) -> $21,875 | J57: =IF(ISERR(ROUND(SLN('Balance Sheet'!J26,0,$F$57)/4,0)),0,ROUND(SLN('Balance Sheet'!J26,0,$F$57)/4,0)) -> $21,875 | K57: =IF(ISERR(ROUND(SLN('Balance Sheet'!K26,0,$F$57)/4,0)),0,ROUND(SLN('Balance Sheet'!K26,0,$F$57)/4,0)) -> $21,875 | L57: =SUM(H57:K57) -> $85,625
E59: Interest: Percentages from Data sheet
F60: =data39 -> 10.00% | G60: Long-Term | H60: =$F$60*'Balance Sheet'!I44/4 -> $1,250 | I60: =$F$60*'Balance Sheet'!J44/4 -> $1,250 | J60: =$F$60*'Balance Sheet'!K44/4 -> $1,250 | K60: =$F$60*'Balance Sheet'!L44/4 -> $1,250 | L60: =SUM(H60:K60) -> $5,000
F61: =data40 -> 10.00% | G61: Short-Term | H61: =$F$61*('Balance Sheet'!I52+'Balance Sheet'!I45)/4 -> $15,000 | I61: =$F$61*('Balance Sheet'!J52+'Balance Sheet'!J45)/4 -> $15,000 | J61: =$F$61*('Balance Sheet'!K52+'Balance Sheet'!K45)/4 -> $15,000 | K61: =$F$61*('Balance Sheet'!L52+'Balance Sheet'!L45)/4 -> $15,000 | L61: =SUM(H61:K61) -> $60,000

Sheet Balance Sheet
D5: The information required for this sheet can be found on a standard balance sheet. NOTE: Enter the data sequentially from top to bottom on this form. Incorrect figures will result in errors in your cash flow calculations.
H13: Actual | I13: Forecast
H14: =IF(data1ab<>"",data1ab-1,"No Entry") -> 2005 | I14: ='Data Entry'!I18 -> 1st Qtr | J14: ='Data Entry'!J18 -> 2nd Qtr | K14: ='Data Entry'!K18 -> 3rd Qtr | L14: ='Data Entry'!L18 -> 4th Qtr
E15: ASSETS
E16: Current Assets
F17: Cash and cash equivalents | H17: $451,000 | I17: =ROUND(H17+H18+H19+H20+H24+H25+H26+H32+H36+I43+I44+I45+I46+I47+I48+I52+I53+I54+I55-I18-I19-I20-I24-I25-I26-I32-I36-H43-H44-H45-H46-H47-H48-H52-H53-H54-H55+I62-H62+'Income Statement'!H23+'Income Statement'!H24+I60-H60+I61-H61,0) -> $90,360 | J17: =IF(ISERR(ROUND(I17+I18+I19+I20+I24+I25+I26+I32+I36+J43+J44+J45+J46+J47+J48+J52+J53+J54+J55-J18-J19-J20-J24-J25-J26-J32-J36-I43-I44-I45-I46-I47-I48-I52-I53-I54-I55+J62-I62+'Income Statement'!I23+'Income Statement'!I24+J60-I60+J61-I61,0)),"",ROUND(I17+I18+I19+I20+I24+I25+I26+I32+I36+J43+J44+J45+J46+J47+J48+J52+J53+J54+J55-J18-J19-J20-J24-J25-J26-J32-J36-I43-I44-I45-I46-I47-I48-I52-I53-I54-I55+J62-I62+'Income Statement'!I23+'Income Statement'!I24+J60-I60+J61-I61,0)) -> $289,233 | K17: =IF(ISERR(ROUND(J17+J18+J19+J20+J24+J25+J26+J32+J36+K43+K44+K45+K46+K47+K48+K52+K53+K54+K55-K18-K19-K20-K24-K25-K26-K32-K36-J43-J44-J45-J46-J47-J48-J52-J53-J54-J55+K62-J62+'Income Statement'!J23+'Income Statement'!J24+K60-J60+K61-J61,0)),"",ROUND(J17+J18+J19+J20+J24+J25+J26+J32+J36+K43+K44+K45+K46+K47+K48+K52+K53+K54+K55-K18-K19-K20-K24-K25-K26-K32-K36-J43-J44-J45-J46-J47-J48-J52-J53-J54-J55+K62-J62+'Income Statement'!J23+'Income Statement'!J24+K60-J60+K61-J61,0)) -> $614,196 | L17: =IF(ISERR(ROUND(K17+K18+K19+K20+K24+K25+K26+K32+K36+L43+L44+L45+L46+L47+L48+L52+L53+L54+L55-L18-L19-L20-L24-L25-L26-L32-L36-K43-K44-K45-K46-K47-K48-K52-K53-K54-K55+L62-K62+'Income Statement'!K23+'Income Statement'!K24+L60-K60+L61-K61,0)),"",ROUND(K17+K18+K19+K20+K24+K25+K26+K32+K36+L43+L44+L45+L46+L47+L48+L52+L53+L54+L55-L18-L19-L20-L24-L25-L26-L32-L36-K43-K44-K45-K46-K47-K48-K52-K53-K54-K55+L62-K62+'Income Statement'!K23+'Income Statement'!K24+L60-K60+L61-K61,0)) -> $1,267,364
F18: Accounts receivable | H18: $350,000 | I18: =ROUND(('Income Statement'!H15/(365*0.25))*'Data Entry'!I19,0) -> $657,534 | J18: =ROUND(('Income Statement'!I15/(365*0.25))*'Data Entry'!J19,0) -> $493,151 | K18: =ROUND(('Income Statement'!J15/(365*0.25))*'Data Entry'!K19,0) -> $427,397 | L18: =ROUND(('Income Statement'!K15/(365*0.25))*'Data Entry'!L19,0) -> $660,855
F19: Inventory | H19: $400,000 | I19: =ROUND((('Income Statement'!H52/(365*0.25))*'Data Entry'!I20)+((SUM('Income Statement'!H51:H53)/(365*0.25))*'Data Entry'!I21),0) -> $630,411 | J19: =ROUND((('Income Statement'!I52/(365*0.25))*'Data Entry'!J20)+((SUM('Income Statement'!I51:I53)/(365*0.25))*'Data Entry'!J21),0) -> $590,959 | K19: =ROUND((('Income Statement'!J52/(365*0.25))*'Data Entry'!K20)+((SUM('Income Statement'!J51:J53)/(365*0.25))*'Data Entry'!K21),0) -> $575,178 | L19: =ROUND((('Income Statement'!K52/(365*0.25))*'Data Entry'!L20)+((SUM('Income Statement'!K51:K53)/(365*0.25))*'Data Entry'!L21),0) -> $692,852
F20: Other current assets | H20: $10,000 | I20: $60,000 | J20: $45,090 | K20: $76,320 | L20: $50,000
G21: Total Current Assets | H21: =SUM(H17:H20) -> $1,211,000 | I21: =SUM(I17:I20) -> $1,438,305 | J21: =SUM(J17:J20) -> $1,418,433 | K21: =SUM(K17:K20) -> $1,693,091 | L21: =SUM(L17:L20) -> $2,671,071
E23: Fixed Assets
F24: Land | H24: $100,000 | I24: $112,500 | J24: $125,000 | K24: $137,500 | L24: $150,000
F25: Buildings | H25: $1,500,000 | I25: $1,450,000 | J25: $1,450,000 | K25: $1,450,000 | L25: $1,450,000
F26: Equipment | H26: $800,000 | I26: $875,000 | J26: $875,000 | K26: $875,000 | L26: $875,000
G27: Subtotal | H27: =SUM(H24:H26) -> $2,400,000 | I27: =SUM(I24:I26) -> $2,437,500 | J27: =SUM(J24:J26) -> $2,450,000 | K27: =SUM(K24:K26) -> $2,462,500 | L27: =SUM(L24:L26) -> $2,475,000
F28: Less-accumulated depreciation | H28: ='Data Entry'!H39 -> $400,000 | I28: =H28+SUM('Income Statement'!H56:H57) -> $432,500 | J28: =I28+SUM('Income Statement'!I56:I57) -> $466,458 | K28: =J28+SUM('Income Statement'!J56:J57) -> $500,416 | L28: =K28+SUM('Income Statement'!K56:K57) -> $534,374
G29: Total Fixed Assets | H29: =H27-H28 -> $2,000,000 | I29: =I27-I28 -> $2,005,000 | J29: =J27-J28 -> $1,983,542 | K29: =K27-K28 -> $1,962,084 | L29: =L27-L28 -> $1,940,626
E31: Intangible Assets
F32: Cost | H32: $50,000 | I32: $50,000 | J32: $50,000 | K32: $50,000 | L32: $50,000
F33: Less-accumulated amortization | H33: $20,000 | I33: $21,250 | J33: $22,500 | K33: $23,750 | L33: $25,000
G34: Total Intangible Assets | H34: =H32-H33 -> $30,000 | I34: =I32-I33 -> $28,750 | J34: =J32-J33 -> $27,500 | K34: =K32-K33 -> $26,250 | L34: =L32-L33 -> $25,000
E36: Other assets | H36: $25,000 | I36: $33,000 | J36: $120,000 | K36: $5,000 | L36: $23,000
G37: Total Assets | H37: =H21+H29+H34+H36 -> $3,266,000 | I37: =ROUND(I21+I29+I34+I36,0) -> $3,505,055 | J37: =ROUND(J21+J29+J34+J36,0) -> $3,549,475 | K37: =ROUND(K21+K29+K34+K36,0) -> $3,686,425 | L37: =ROUND(L21+L29+L34+L36,0) -> $4,659,697
H39: Actual | I39: Forecast
E40: LIABILITIES AND | H40: =H14 -> 2005 | I40: ='Data Entry'!I18 -> 1st Qtr | J40: ='Data Entry'!J18 -> 2nd Qtr | K40: ='Data Entry'!K18 -> 3rd Qtr | L40: ='Data Entry'!L18 -> 4th Qtr
E41: =IF(H68="Y","STOCKHOLDERS' EQUITY","OWNERS' EQUITY") -> STOCKHOLDERS' EQUITY
E42: Current Liabilities
F43: Accounts payable | H43: $600,000 | I43: =ROUND(('Income Statement'!H52/(365*0.25))*'Data Entry'!I22,0) -> $328,767 | J43: =ROUND(('Income Statement'!I52/(365*0.25))*'Data Entry'!J22,0) -> $328,767 | K43: =ROUND(('Income Statement'!J52/(365*0.25))*'Data Entry'!K22,0) -> $328,767 | L43: =ROUND(('Income Statement'!K52/(365*0.25))*'Data Entry'!L22,0) -> $328,767
F44: Notes payable | H44: $100,000 | I44: ='Data Entry'!J36 -> $50,000 | J44: ='Data Entry'!J36 -> $50,000 | K44: ='Data Entry'!J36 -> $50,000 | L44: ='Data Entry'!J36 -> $50,000
F45: Current portion of long-term debt | H45: $100,000 | I45: ='Data Entry'!J35 -> $100,000 | J45: ='Data Entry'!J35 -> $100,000 | K45: ='Data Entry'!J35 -> $100,000 | L45: ='Data Entry'!J35 -> $100,000
F46: Income taxes | H46: $30,000 | I46: =IF($H68="Y",ROUND(('Income Statement'!H37-I54),0),0) -> $183,300 | J46: =IF($H68="Y",ROUND(('Income Statement'!I37-J54),0),0) -> $70,663 | K46: =IF($H68="Y",ROUND(('Income Statement'!J37-K54),0),0) -> $45,883 | L46: =IF($H68="Y",ROUND(('Income Statement'!K37-L54),0),0) -> $292,975
F47: Accrued expenses | H47: $90,000 | I47: =ROUND(((('Data Entry'!I27+'Data Entry'!I28)/(365*0.25))*'Data Entry'!I23)+((SUM('Data Entry'!I29:I32))/(365*0.25))*'Data Entry'!I24,0) -> $83,288 | J47: =ROUND(((('Data Entry'!J27+'Data Entry'!J28)/(365*0.25))*'Data Entry'!J23)+((SUM('Data Entry'!J29:J32))/(365*0.25))*'Data Entry'!J24,0) -> $62,466 | K47: =ROUND(((('Data Entry'!K27+'Data Entry'!K28)/(365*0.25))*'Data Entry'!K23)+((SUM('Data Entry'!K29:K32))/(365*0.25))*'Data Entry'!K24,0) -> $54,137 | L47: =ROUND(((('Data Entry'!L27+'Data Entry'!L28)/(365*0.25))*'Data Entry'!L23)+((SUM('Data Entry'!L29:L32))/(365*0.25))*'Data Entry'!L24,0) -> $83,708
F48: Other current liabilities | H48: $16,000 | I48: $12,000 | J48: $12,000 | K48: $12,000 | L48: $12,000
G49: Total Current Liabilities | H49: =SUM(H43:H48) -> $936,000 | I49: =SUM(I43:I48) -> $757,355 | J49: =SUM(J43:J48) -> $623,896 | K49: =SUM(K43:K48) -> $590,787 | L49: =SUM(L43:L48) -> $867,450
E51: Non-Current Liabilities
F52: Long-term debt | H52: $600,000 | I52: ='Data Entry'!K35 -> $500,000 | J52: ='Data Entry'!K35 -> $500,000 | K52: ='Data Entry'!K35 -> $500,000 | L52: ='Data Entry'!K35 -> $500,000
F53: Deferred income | H53: $100,000 | I53: $90,000 | J53: $90,000 | K53: $90,000 | L53: $90,000
F54: Deferred income taxes | H54: $30,000 | I54: $27,000 | J54: $27,000 | K54: $27,000 | L54: $27,000
F55: Other long-term liabilities | H55: $50,000 | I55: $90,000 | J55: $40,000 | K55: $40,000 | L55: $40,000
G57: Total Liabilities | H57: =SUM(H49:H55) -> $1,716,000 | I57: =SUM(I49:I55) -> $1,464,355 | J57: =SUM(J49:J55) -> $1,280,896 | K57: =SUM(K49:K55) -> $1,247,787 | L57: =SUM(L49:L55) -> $1,524,450
E59: =IF(H68="Y","Stockholders' Equity","Owners' Equity") -> Stockholders' Equity
F60: Capital stock issued | H60: $100,000 | I60: ='Data Entry'!I37 -> $100,000 | J60: ='Data Entry'!I37 -> $100,000 | K60: ='Data Entry'!I37 -> $100,000 | L60: ='Data Entry'!I37 -> $100,000
F61: =IF(H68="Y","Additional paid in capital","Additional capital invested") -> Additional paid in capital | H61: $50,000 | I61: ='Data Entry'!I38 -> $50,000 | J61: ='Data Entry'!I38 -> $50,000 | K61: ='Data Entry'!I38 -> $50,000 | L61: ='Data Entry'!I38 -> $50,000
F62: =IF(H68="Y","Retained earnings","Undistributed earnings") -> Retained earnings | H62: $1,400,000 | I62: ='Income Statement'!H45 -> $1,890,700 | J62: ='Income Statement'!I45 -> $2,118,579 | K62: ='Income Statement'!J45 -> $2,288,638 | L62: ='Income Statement'!K45 -> $2,985,247
F63: Other | H63: $0 | I63: $0 | J63: $0 | K63: $0 | L63: $0
H64: =SUM(H60:H63) -> $1,550,000 | I64: =SUM(I60:I63) -> $2,040,700 | J64: =SUM(J60:J63) -> $2,268,579 | K64: =SUM(K60:K63) -> $2,438,638 | L64: =SUM(L60:L63) -> $3,135,247
G66: Total Liabilities and Equity | H66: =ROUND(H57+H64,0) -> $3,266,000 | I66: =ROUND(I57+I64,0) -> $3,505,055 | J66: =ROUND(J57+J64,0) -> $3,549,475 | K66: =ROUND(K57+K64,0) -> $3,686,425 | L66: =ROUND(L57+L64,0) -> $4,659,697
F68: "C" Corporation (Y/N) | H68: =IF(data2ab="C","Y","N") -> Y
F69: Cash balance positive or (negative) | H69: =IF(H17>=0,"Positive ","(Negative) ") -> Positive | I69: =IF(I17>=0,"Positive ","(Negative) ") -> Positive | J69: =IF(J17>=0,"Positive ","(Negative) ") -> Positive | K69: =IF(K17>=0,"Positive ","(Negative) ") -> Positive | L69: =IF(L17>=0,"Positive ","(Negative) ") -> Positive
F70: Amount sheet is out-of-balance | H70: =H37-H66 -> $0 | I70: =I37-I66 -> $0 | J70: =J37-J66 -> $0 | K70: =K37-K66 -> $0 | L70: =L37-L66 -> $0
F71: Amount cash flow out-of-balance | I71: =I17-'Cash Flow Statement'!I60 -> $0 | J71: =J17-'Cash Flow Statement'!J60 -> $0 | K71: =K17-'Cash Flow Statement'!K60 -> $0 | L71: =L17-'Cash Flow Statement'!L60 -> $0

Sheet Cash Flow Statement
D6: This sheet displays all the information normally found on a standard cash flow statement. It is entirely calculated from the information on the Data Entry, Income Statement, and Balance worksheets.
E13: ='Balance Sheet'!F13 ->  | I13: Forecasted | M13: Total
I14: ='Balance Sheet'!I14 -> 1st Qtr | J14: ='Balance Sheet'!J14 -> 2nd Qtr | K14: ='Balance Sheet'!K14 -> 3rd Qtr | L14: ='Balance Sheet'!L14 -> 4th Qtr | M14: =IF('Data Entry'!$G$17=1,"4 Quarters",IF('Data Entry'!$G$17=2,"4 Years","No Entry")) -> 4 Quarters
E15: Cash from operations
F16: Net earnings (loss) | I16: =IF('Balance Sheet'!H68="y",ROUND('Income Statement'!H39,0),ROUND('Income Statement'!H35,0)) -> $490,700 | J16: =IF('Balance Sheet'!H68="y",ROUND('Income Statement'!I39,0),ROUND('Income Statement'!I35,0)) -> $227,879 | K16: =IF('Balance Sheet'!H68="y",ROUND('Income Statement'!J39,0),ROUND('Income Statement'!J35,0)) -> $170,059 | L16: =IF('Balance Sheet'!H68="y",ROUND('Income Statement'!K39,0),ROUND('Income Statement'!K35,0)) -> $746,609 | M16: =SUM(I16:L16) -> $1,635,247
F17: Add-depreciation and amortization | I17: =ROUND('Income Statement'!H23+'Income Statement'!H24,0) -> $33,750 | J17: =ROUND('Income Statement'!I23+'Income Statement'!I24,0) -> $35,208 | K17: =ROUND('Income Statement'!J23+'Income Statement'!J24,0) -> $35,208 | L17: =ROUND('Income Statement'!K23+'Income Statement'!K24,0) -> $35,208 | M17: =SUM(I17:L17) -> $139,374
H19: Net cash from operations | I19: =ROUND(SUM(I16:I17),0) -> $524,450 | J19: =ROUND(SUM(J16:J17),0) -> $263,087 | K19: =ROUND(SUM(K16:K17),0) -> $205,267 | L19: =ROUND(SUM(L16:L17),0) -> $781,817 | M19: =SUM(I19:L19) -> $1,774,621
E21: Cash provided (used) by
E22: operating activities
F23: Accounts Receivable | I23: =ROUND('Balance Sheet'!H18-'Balance Sheet'!I18,0) -> ($307,534) | J23: =ROUND('Balance Sheet'!I18-'Balance Sheet'!J18,0) -> $164,383 | K23: =ROUND('Balance Sheet'!J18-'Balance Sheet'!K18,0) -> $65,754 | L23: =ROUND('Balance Sheet'!K18-'Balance Sheet'!L18,0) -> ($233,458) | M23: =SUM(I23:L23) -> ($310,855)
F24: Inventory | I24: =ROUND('Balance Sheet'!H19-'Balance Sheet'!I19,0) -> ($230,411) | J24: =ROUND('Balance Sheet'!I19-'Balance Sheet'!J19,0) -> $39,452 | K24: =ROUND('Balance Sheet'!J19-'Balance Sheet'!K19,0) -> $15,781 | L24: =ROUND('Balance Sheet'!K19-'Balance Sheet'!L19,0) -> ($117,674) | M24: ($292,852)
F25: Other current assets | I25: =ROUND('Balance Sheet'!H20-'Balance Sheet'!I20,0) -> ($50,000) | J25: =ROUND('Balance Sheet'!I20-'Balance Sheet'!J20,0) -> $14,910 | K25: =ROUND('Balance Sheet'!J20-'Balance Sheet'!K20,0) -> ($31,230) | L25: =ROUND('Balance Sheet'!K20-'Balance Sheet'!L20,0) -> $26,320 | M25: ($40,000)
F26: Other non-current assets | I26: =ROUND('Balance Sheet'!H36-'Balance Sheet'!I36,0) -> ($8,000) | J26: =ROUND('Balance Sheet'!I36-'Balance Sheet'!J36,0) -> ($87,000) | K26: =ROUND('Balance Sheet'!J36-'Balance Sheet'!K36,0) -> $115,000 | L26: =ROUND('Balance Sheet'!K36-'Balance Sheet'!L36,0) -> ($18,000) | M26: $2,000
F27: Accounts payable | I27: =ROUND('Balance Sheet'!I43-'Balance Sheet'!H43,0) -> ($271,233) | J27: =ROUND('Balance Sheet'!J43-'Balance Sheet'!I43,0) -> $0 | K27: =ROUND('Balance Sheet'!K43-'Balance Sheet'!J43,0) -> $0 | L27: =ROUND('Balance Sheet'!L43-'Balance Sheet'!K43,0) -> $0 | M27: ($271,233)
F28: Current portion of long-term debt | I28: =ROUND('Balance Sheet'!I45-'Balance Sheet'!H45,0) -> $0 | J28: =ROUND('Balance Sheet'!J45-'Balance Sheet'!I45,0) -> $0 | K28: =ROUND('Balance Sheet'!K45-'Balance Sheet'!J45,0) -> $0 | L28: =ROUND('Balance Sheet'!L45-'Balance Sheet'!K45,0) -> $0 | M28: $0
F29: Income taxes | I29: =ROUND('Balance Sheet'!I46-'Balance Sheet'!H46,0) -> $153,300 | J29: =ROUND('Balance Sheet'!J46-'Balance Sheet'!I46,0) -> ($112,637) | K29: =ROUND('Balance Sheet'!K46-'Balance Sheet'!J46,0) -> ($24,780) | L29: =ROUND('Balance Sheet'!L46-'Balance Sheet'!K46,0) -> $247,092 | M29: $262,975
F30: Accrued expenses | I30: =ROUND('Balance Sheet'!I47-'Balance Sheet'!H47,0) -> ($6,712) | J30: =ROUND('Balance Sheet'!J47-'Balance Sheet'!I47,0) -> ($20,822) | K30: =ROUND('Balance Sheet'!K47-'Balance Sheet'!J47,0) -> ($8,329) | L30: =ROUND('Balance Sheet'!L47-'Balance Sheet'!K47,0) -> $29,571 | M30: ($6,292)
F31: Other current liabilities | I31: =ROUND('Balance Sheet'!I48-'Balance Sheet'!H48,0) -> ($4,000) | J31: =ROUND('Balance Sheet'!J48-'Balance Sheet'!I48,0) -> $0 | K31: =ROUND('Balance Sheet'!K48-'Balance Sheet'!J48,0) -> $0 | L31: =ROUND('Balance Sheet'!L48-'Balance Sheet'!K48,0) -> $0 | M31: ($4,000)
F32: =IF('Balance Sheet'!H68="y","Dividends paid","Distributions to shareholders") -> Dividends paid | I32: =ROUND('Income Statement'!H43*-1,0) -> $0 | J32: =ROUND('Income Statement'!I43*-1,0) -> $0 | K32: =ROUND('Income Statement'!J43*-1,0) -> $0 | L32: =ROUND('Income Statement'!K43*-1,0) -> ($50,000) | M32: ($50,000)
H34: Net cash from operations | I34: =ROUND(SUM(I23:I32),0) -> ($724,590) | J34: =ROUND(SUM(J23:J32),0) -> ($1,714) | K34: =ROUND(SUM(K23:K32),0) -> $132,196 | L34: =ROUND(SUM(L23:L32),0) -> ($116,149) | M34: =SUM(I34:L34) -> ($710,257)
E36: Investment transactions
E37: Increases (decreases)
F38: Land | I38: =ROUND('Balance Sheet'!I24-'Balance Sheet'!H24,0) -> $12,500 | J38: =ROUND('Balance Sheet'!J24-'Balance Sheet'!I24,0) -> $12,500 | K38: =ROUND('Balance Sheet'!K24-'Balance Sheet'!J24,0) -> $12,500 | L38: =ROUND('Balance Sheet'!L24-'Balance Sheet'!K24,0) -> $12,500 | M38: =SUM(I38:L38) -> $50,000
F39: Buildings and improvements | I39: =ROUND('Balance Sheet'!I25-'Balance Sheet'!H25,0) -> ($50,000) | J39: =ROUND('Balance Sheet'!J25-'Balance Sheet'!I25,0) -> $0 | K39: =ROUND('Balance Sheet'!K25-'Balance Sheet'!J25,0) -> $0 | L39: =ROUND('Balance Sheet'!L25-'Balance Sheet'!K25,0) -> $0 | M39: =SUM(I39:L39) -> ($50,000)
F40: Equipment | I40: =ROUND('Balance Sheet'!I26-'Balance Sheet'!H26,0) -> $75,000 | J40: =ROUND('Balance Sheet'!J26-'Balance Sheet'!I26,0) -> $0 | K40: =ROUND('Balance Sheet'!K26-'Balance Sheet'!J26,0) -> $0 | L40: =ROUND('Balance Sheet'!L26-'Balance Sheet'!K26,0) -> $0 | M40: =SUM(I40:L40) -> $75,000
F41: Intangible assets | I41: =ROUND('Balance Sheet'!I32-'Balance Sheet'!H32,0) -> $0 | J41: =ROUND('Balance Sheet'!J32-'Balance Sheet'!I32,0) -> $0 | K41: =ROUND('Balance Sheet'!K32-'Balance Sheet'!J32,0) -> $0 | L41: =ROUND('Balance Sheet'!L32-'Balance Sheet'!K32,0) -> $0 | M41: =SUM(I41:L41) -> $0
H43: Net cash from investments | I43: =ROUND(SUM(I38:I41),0) -> $37,500 | J43: =ROUND(SUM(J38:J41),0) -> $12,500 | K43: =ROUND(SUM(K38:K41),0) -> $12,500 | L43: =ROUND(SUM(L38:L41),0) -> $12,500 | M43: =SUM(I43:L43) -> $75,000
E45: Financing transactions
E46: Increases (decreases)
F47: Short term notes payable | I47: =ROUND('Balance Sheet'!I44-'Balance Sheet'!H44,0) -> ($50,000) | J47: =ROUND('Balance Sheet'!J44-'Balance Sheet'!I44,0) -> $0 | K47: =ROUND('Balance Sheet'!K44-'Balance Sheet'!J44,0) -> $0 | L47: =ROUND('Balance Sheet'!L44-'Balance Sheet'!K44,0) -> $0 | M47: =SUM(I47:L47) -> ($50,000)
F48: Long term debt | I48: =ROUND('Balance Sheet'!I52-'Balance Sheet'!H52,0) -> ($100,000) | J48: =ROUND('Balance Sheet'!J52-'Balance Sheet'!I52,0) -> $0 | K48: =ROUND('Balance Sheet'!K52-'Balance Sheet'!J52,0) -> $0 | L48: =ROUND('Balance Sheet'!L52-'Balance Sheet'!K52,0) -> $0 | M48: ($100,000)
F49: Deferred income | I49: =ROUND('Balance Sheet'!I53-'Balance Sheet'!H53,0) -> ($10,000) | J49: =ROUND('Balance Sheet'!J53-'Balance Sheet'!I53,0) -> $0 | K49: =ROUND('Balance Sheet'!K53-'Balance Sheet'!J53,0) -> $0 | L49: =ROUND('Balance Sheet'!L53-'Balance Sheet'!K53,0) -> $0 | M49: ($10,000)
F50: Deferred income taxes | I50: =ROUND('Balance Sheet'!I54-'Balance Sheet'!H54,0) -> ($3,000) | J50: =ROUND('Balance Sheet'!J54-'Balance Sheet'!I54,0) -> $0 | K50: =ROUND('Balance Sheet'!K54-'Balance Sheet'!J54,0) -> $0 | L50: =ROUND('Balance Sheet'!L54-'Balance Sheet'!K54,0) -> $0 | M50: ($3,000)
F51: Other long-term liabilities | I51: =ROUND('Balance Sheet'!I55-'Balance Sheet'!H55,0) -> $40,000 | J51: =ROUND('Balance Sheet'!J55-'Balance Sheet'!I55,0) -> ($50,000) | K51: =ROUND('Balance Sheet'!K55-'Balance Sheet'!J55,0) -> $0 | L51: =ROUND('Balance Sheet'!L55-'Balance Sheet'!K55,0) -> $0 | M51: ($10,000)
F52: =IF('Balance Sheet'!H68="y","Capital stock and paid in capital","Capital invested") -> Capital stock and paid in capital | I52: =ROUND(('Balance Sheet'!I60+'Balance Sheet'!I61)-('Balance Sheet'!H60+'Balance Sheet'!H61),0) -> $0 | J52: =ROUND(('Balance Sheet'!J60+'Balance Sheet'!J61)-('Balance Sheet'!I60+'Balance Sheet'!I61),0) -> $0 | K52: =ROUND(('Balance Sheet'!K60+'Balance Sheet'!K61)-('Balance Sheet'!J60+'Balance Sheet'!J61),0) -> $0 | L52: =ROUND(('Balance Sheet'!L60+'Balance Sheet'!L61)-('Balance Sheet'!K60+'Balance Sheet'!K61),0) -> $0 | M52: $0
H54: Net cash from financing | I54: =ROUND(SUM(I47:I52),0) -> ($123,000) | J54: =ROUND(SUM(J47:J52),0) -> ($50,000) | K54: =ROUND(SUM(K47:K52),0) -> $0 | L54: =ROUND(SUM(L47:L52),0) -> $0 | M54: =SUM(I54:L54) -> ($173,000)
H56: Net increase (decrease) in cash | I56: =ROUND(I19+I34-I43+I54,0) -> ($360,640) | J56: =ROUND(J19+J34-J43+J54,0) -> $198,873 | K56: =ROUND(K19+K34-K43+K54,0) -> $324,963 | L56: =ROUND(L19+L34-L43+L54,0) -> $653,168 | M56: =SUM(I56:L56) -> $816,364
H58: Cash at beginning of period | I58: =ROUND('Balance Sheet'!H17,0) -> $451,000 | J58: =ROUND('Balance Sheet'!I17,0) -> $90,360 | K58: =ROUND('Balance Sheet'!J17,0) -> $289,233 | L58: =ROUND('Balance Sheet'!K17,0) -> $614,196 | M58: =I58 -> $451,000
H60: Cash at the end of period | I60: =ROUND(SUM(I56:I58),0) -> $90,360 | J60: =ROUND(SUM(J56:J58),0) -> $289,233 | K60: =ROUND(SUM(K56:K58),0) -> $614,196 | L60: =ROUND(SUM(L56:L58),0) -> $1,267,364 | M60: =SUM(M56:M58) -> $1,267,364

Sheet Cash Flow Projections
D6: This sheet displays all the information normally found on a standard cash flow statement. It is entirely calculated from the information on the Data Entry, Income Statement, and Balance worksheets.
E13: ='Balance Sheet'!F13 ->  | I13: Current | M13: Forecasted-Linear Regression Analysis
I14: ='Balance Sheet'!I14 -> 1st Qtr | J14: ='Balance Sheet'!J14 -> 2nd Qtr | K14: ='Balance Sheet'!K14 -> 3rd Qtr | L14: ='Balance Sheet'!L14 -> 4th Qtr | M14: =IF('Data Entry'!$G$17=1,CONCATENATE("5th ","Qtr"),IF('Data Entry'!$G$17=2,CONCATENATE("5th ","Year"),"Incorrect Entry")) -> 5th Qtr | N14: =IF('Data Entry'!$G$17=1,CONCATENATE("6th ","Qtr"),IF('Data Entry'!$G$17=2,CONCATENATE("6th ","Year"),"Incorrect Entry")) -> 6th Qtr | O14: =IF('Data Entry'!$G$17=1,CONCATENATE("7th ","Qtr"),IF('Data Entry'!$G$17=2,CONCATENATE("7th ","Year"),"Incorrect Entry")) -> 7th Qtr | P14: =IF('Data Entry'!$G$17=1,CONCATENATE("8th ","Qtr"),IF('Data Entry'!$G$17=2,CONCATENATE("8th ","Year"),"Incorrect Entry")) -> 8th Qtr
E15: Cash from operations | I15: 1 | J15: 2 | K15: 3 | L15: 4 | M15: 5 | N15: 6 | O15: 7 | P15: 8
F16: Net earnings (loss) | I16: =IF('Balance Sheet'!H68="y",ROUND('Income Statement'!H39,0),ROUND('Income Statement'!H35,0)) -> $490,700 | J16: =IF('Balance Sheet'!H68="y",ROUND('Income Statement'!I39,0),ROUND('Income Statement'!I35,0)) -> $227,879 | K16: =IF('Balance Sheet'!H68="y",ROUND('Income Statement'!J39,0),ROUND('Income Statement'!J35,0)) -> $170,059 | L16: =IF('Balance Sheet'!H68="y",ROUND('Income Statement'!K39,0),ROUND('Income Statement'!K35,0)) -> $746,609 | M16: =FORECAST($M$15,I16:L16,$I$15:$L$15) -> $586,289 | N16: =FORECAST($N$15,I16:M16,$I$15:$M$15) -> $657,279 | O16: =FORECAST($O$15,I16:N16,$I$15:$N$15) -> $728,270 | P16: =FORECAST($P$15,I16:O16,$I$15:$O$15) -> $799,261
F17: Add-depreciation and amortization | I17: =ROUND('Income Statement'!H23+'Income Statement'!H24,0) -> $33,750 | J17: =ROUND('Income Statement'!I23+'Income Statement'!I24,0) -> $35,208 | K17: =ROUND('Income Statement'!J23+'Income Statement'!J24,0) -> $35,208 | L17: =ROUND('Income Statement'!K23+'Income Statement'!K24,0) -> $35,208 | M17: =FORECAST($M$15,I17:L17,$I$15:$L$15) -> $35,937 | N17: =FORECAST($N$15,I17:M17,$I$15:$M$15) -> $36,374 | O17: =FORECAST($O$15,I17:N17,$I$15:$N$15) -> $36,812 | P17: =FORECAST($P$15,I17:O17,$I$15:$O$15) -> $37,249
H19: Net cash from operations | I19: =ROUND(SUM(I16:I17),0) -> $524,450 | J19: =ROUND(SUM(J16:J17),0) -> $263,087 | K19: =ROUND(SUM(K16:K17),0) -> $205,267 | L19: =ROUND(SUM(L16:L17),0) -> $781,817 | M19: =FORECAST($M$15,I19:L19,$I$15:$L$15) -> $622,226 | N19: =FORECAST($N$15,I19:M19,$I$15:$M$15) -> $693,654 | O19: =FORECAST($O$15,I19:N19,$I$15:$N$15) -> $765,082 | P19: =FORECAST($P$15,I19:O19,$I$15:$O$15) -> $836,510
E21: Cash provided (used) by
E22: operating activities
F23: Accounts Receivable | I23: =ROUND('Balance Sheet'!H18-'Balance Sheet'!I18,0) -> ($307,534) | J23: =ROUND('Balance Sheet'!I18-'Balance Sheet'!J18,0) -> $164,383 | K23: =ROUND('Balance Sheet'!J18-'Balance Sheet'!K18,0) -> $65,754 | L23: =ROUND('Balance Sheet'!K18-'Balance Sheet'!L18,0) -> ($233,458) | M23: =FORECAST($M$15,I23:L23,$I$15:$L$15) -> ($46,814) | N23: =FORECAST($N$15,I23:M23,$I$15:$M$15) -> ($34,454) | O23: =FORECAST($O$15,I23:N23,$I$15:$N$15) -> ($22,094) | P23: =FORECAST($P$15,I23:O23,$I$15:$O$15) -> ($9,734)
F24: Inventory | I24: =ROUND('Balance Sheet'!H19-'Balance Sheet'!I19,0) -> ($230,411) | J24: =ROUND('Balance Sheet'!I19-'Balance Sheet'!J19,0) -> $39,452 | K24: =ROUND('Balance Sheet'!J19-'Balance Sheet'!K19,0) -> $15,781 | L24: =ROUND('Balance Sheet'!K19-'Balance Sheet'!L19,0) -> ($117,674) | M24: $5,422 | N24: $36,876 | O24: $68,330 | P24: $99,784
F25: Other current assets | I25: =ROUND('Balance Sheet'!H20-'Balance Sheet'!I20,0) -> ($50,000) | J25: =ROUND('Balance Sheet'!I20-'Balance Sheet'!J20,0) -> $14,910 | K25: =ROUND('Balance Sheet'!J20-'Balance Sheet'!K20,0) -> ($31,230) | L25: =ROUND('Balance Sheet'!K20-'Balance Sheet'!L20,0) -> $26,320 | M25: $35,705 | N25: $53,987 | O25: $72,269 | P25: $90,551
F26: Other non-current assets | I26: =ROUND('Balance Sheet'!H36-'Balance Sheet'!I36,0) -> ($8,000) | J26: =ROUND('Balance Sheet'!I36-'Balance Sheet'!J36,0) -> ($87,000) | K26: =ROUND('Balance Sheet'!J36-'Balance Sheet'!K36,0) -> $115,000 | L26: =ROUND('Balance Sheet'!K36-'Balance Sheet'!L36,0) -> ($18,000) | M26: $43,500 | N26: $60,700 | O26: $77,900 | P26: $95,100
F27: Accounts payable | I27: =ROUND('Balance Sheet'!I43-'Balance Sheet'!H43,0) -> ($271,233) | J27: =ROUND('Balance Sheet'!J43-'Balance Sheet'!I43,0) -> $0 | K27: =ROUND('Balance Sheet'!K43-'Balance Sheet'!J43,0) -> $0 | L27: =ROUND('Balance Sheet'!L43-'Balance Sheet'!K43,0) -> $0 | M27: $135,617 | N27: $216,986 | O27: $298,356 | P27: $379,726
F28: Current portion of long-term debt | I28: =ROUND('Balance Sheet'!I45-'Balance Sheet'!H45,0) -> $0 | J28: =ROUND('Balance Sheet'!J45-'Balance Sheet'!I45,0) -> $0 | K28: =ROUND('Balance Sheet'!K45-'Balance Sheet'!J45,0) -> $0 | L28: =ROUND('Balance Sheet'!L45-'Balance Sheet'!K45,0) -> $0 | M28: $0 | N28: $0 | O28: $0 | P28: $0
F29: Income taxes | I29: =ROUND('Balance Sheet'!I46-'Balance Sheet'!H46,0) -> $153,300 | J29: =ROUND('Balance Sheet'!J46-'Balance Sheet'!I46,0) -> ($112,637) | K29: =ROUND('Balance Sheet'!K46-'Balance Sheet'!J46,0) -> ($24,780) | L29: =ROUND('Balance Sheet'!L46-'Balance Sheet'!K46,0) -> $247,092 | M29: $158,052 | N29: $194,975 | O29: $231,899 | P29: $268,822
F30: Accrued expenses | I30: =ROUND('Balance Sheet'!I47-'Balance Sheet'!H47,0) -> ($6,712) | J30: =ROUND('Balance Sheet'!J47-'Balance Sheet'!I47,0) -> ($20,822) | K30: =ROUND('Balance Sheet'!K47-'Balance Sheet'!J47,0) -> ($8,329) | L30: =ROUND('Balance Sheet'!L47-'Balance Sheet'!K47,0) -> $29,571 | M30: $28,763 | N30: $40,897 | O30: $53,031 | P30: $65,165
F31: Other current liabilities | I31: =ROUND('Balance Sheet'!I48-'Balance Sheet'!H48,0) -> ($4,000) | J31: =ROUND('Balance Sheet'!J48-'Balance Sheet'!I48,0) -> $0 | K31: =ROUND('Balance Sheet'!K48-'Balance Sheet'!J48,0) -> $0 | L31: =ROUND('Balance Sheet'!L48-'Balance Sheet'!K48,0) -> $0 | M31: $2,000 | N31: $3,200 | O31: $4,400 | P31: $5,600
F32: =IF('Balance Sheet'!H68="y","Dividends paid","Distributions to shareholders") -> Dividends paid | I32: =ROUND('Income Statement'!H43*-1,0) -> $0 | J32: =ROUND('Income Statement'!I43*-1,0) -> $0 | K32: =ROUND('Income Statement'!J43*-1,0) -> $0 | L32: =ROUND('Income Statement'!K43*-1,0) -> ($50,000) | M32: ($50,000) | N32: ($65,000) | O32: ($80,000) | P32: ($95,000)
H34: Net cash from operations | I34: =ROUND(SUM(I23:I32),0) -> ($724,590) | J34: =ROUND(SUM(J23:J32),0) -> ($1,714) | K34: =ROUND(SUM(K23:K32),0) -> $132,196 | L34: =ROUND(SUM(L23:L32),0) -> ($116,149) | M34: =FORECAST($M$15,I34:L34,$I$15:$L$15) -> $312,244 | N34: =FORECAST($N$15,I34:M34,$I$15:$M$15) -> $508,167 | O34: =FORECAST($O$15,I34:N34,$I$15:$N$15) -> $704,091 | P34: =FORECAST($P$15,I34:O34,$I$15:$O$15) -> $900,014
E36: Investment transactions
E37: Increases (decreases)
F38: Land | I38: =ROUND('Balance Sheet'!I24-'Balance Sheet'!H24,0) -> $12,500 | J38: =ROUND('Balance Sheet'!J24-'Balance Sheet'!I24,0) -> $12,500 | K38: =ROUND('Balance Sheet'!K24-'Balance Sheet'!J24,0) -> $12,500 | L38: =ROUND('Balance Sheet'!L24-'Balance Sheet'!K24,0) -> $12,500 | M38: =FORECAST($M$15,I38:L38,$I$15:$L$15) -> $12,500 | N38: =FORECAST($N$15,I38:M38,$I$15:$M$15) -> $12,500 | O38: =FORECAST($O$15,I38:N38,$I$15:$N$15) -> $12,500 | P38: =FORECAST($P$15,I38:O38,$I$15:$O$15) -> $12,500
F39: Buildings and improvements | I39: =ROUND('Balance Sheet'!I25-'Balance Sheet'!H25,0) -> ($50,000) | J39: =ROUND('Balance Sheet'!J25-'Balance Sheet'!I25,0) -> $0 | K39: =ROUND('Balance Sheet'!K25-'Balance Sheet'!J25,0) -> $0 | L39: =ROUND('Balance Sheet'!L25-'Balance Sheet'!K25,0) -> $0 | M39: =FORECAST($M$15,I39:L39,$I$15:$L$15) -> $25,000 | N39: =FORECAST($N$15,I39:M39,$I$15:$M$15) -> $40,000 | O39: =FORECAST($O$15,I39:N39,$I$15:$N$15) -> $55,000 | P39: =FORECAST($P$15,I39:O39,$I$15:$O$15) -> $70,000
F40: Equipment | I40: =ROUND('Balance Sheet'!I26-'Balance Sheet'!H26,0) -> $75,000 | J40: =ROUND('Balance Sheet'!J26-'Balance Sheet'!I26,0) -> $0 | K40: =ROUND('Balance Sheet'!K26-'Balance Sheet'!J26,0) -> $0 | L40: =ROUND('Balance Sheet'!L26-'Balance Sheet'!K26,0) -> $0 | M40: =FORECAST($M$15,I40:L40,$I$15:$L$15) -> ($37,500) | N40: =FORECAST($N$15,I40:M40,$I$15:$M$15) -> ($60,000) | O40: =FORECAST($O$15,I40:N40,$I$15:$N$15) -> ($82,500) | P40: =FORECAST($P$15,I40:O40,$I$15:$O$15) -> ($105,000)
F41: Intangible assets | I41: =ROUND('Balance Sheet'!I32-'Balance Sheet'!H32,0) -> $0 | J41: =ROUND('Balance Sheet'!J32-'Balance Sheet'!I32,0) -> $0 | K41: =ROUND('Balance Sheet'!K32-'Balance Sheet'!J32,0) -> $0 | L41: =ROUND('Balance Sheet'!L32-'Balance Sheet'!K32,0) -> $0 | M41: =FORECAST($M$15,I41:L41,$I$15:$L$15) -> $0 | N41: =FORECAST($N$15,I41:M41,$I$15:$M$15) -> $0 | O41: =FORECAST($O$15,I41:N41,$I$15:$N$15) -> $0 | P41: =FORECAST($P$15,I41:O41,$I$15:$O$15) -> $0
H43: Net cash from investments | I43: =ROUND(SUM(I38:I41),0) -> $37,500 | J43: =ROUND(SUM(J38:J41),0) -> $12,500 | K43: =ROUND(SUM(K38:K41),0) -> $12,500 | L43: =ROUND(SUM(L38:L41),0) -> $12,500 | M43: =FORECAST($M$15,I43:L43,$I$15:$L$15) -> $0 | N43: =FORECAST($N$15,I43:M43,$I$15:$M$15) -> ($7,500) | O43: =FORECAST($O$15,I43:N43,$I$15:$N$15) -> ($15,000) | P43: =FORECAST($P$15,I43:O43,$I$15:$O$15) -> ($22,500)
E45: Financing transactions
E46: Increases (decreases)
F47: Short term notes payable | I47: =ROUND('Balance Sheet'!I44-'Balance Sheet'!H44,0) -> ($50,000) | J47: =ROUND('Balance Sheet'!J44-'Balance Sheet'!I44,0) -> $0 | K47: =ROUND('Balance Sheet'!K44-'Balance Sheet'!J44,0) -> $0 | L47: =ROUND('Balance Sheet'!L44-'Balance Sheet'!K44,0) -> $0 | M47: =FORECAST($M$15,I47:L47,$I$15:$L$15) -> $25,000 | N47: =FORECAST($N$15,I47:M47,$I$15:$M$15) -> $40,000 | O47: =FORECAST($O$15,I47:N47,$I$15:$N$15) -> $55,000 | P47: =FORECAST($P$15,I47:O47,$I$15:$O$15) -> $70,000
F48: Long term debt | I48: =ROUND('Balance Sheet'!I52-'Balance Sheet'!H52,0) -> ($100,000) | J48: =ROUND('Balance Sheet'!J52-'Balance Sheet'!I52,0) -> $0 | K48: =ROUND('Balance Sheet'!K52-'Balance Sheet'!J52,0) -> $0 | L48: =ROUND('Balance Sheet'!L52-'Balance Sheet'!K52,0) -> $0 | M48: $50,000 | N48: $80,000 | O48: $110,000 | P48: $140,000
F49: Deferred income | I49: =ROUND('Balance Sheet'!I53-'Balance Sheet'!H53,0) -> ($10,000) | J49: =ROUND('Balance Sheet'!J53-'Balance Sheet'!I53,0) -> $0 | K49: =ROUND('Balance Sheet'!K53-'Balance Sheet'!J53,0) -> $0 | L49: =ROUND('Balance Sheet'!L53-'Balance Sheet'!K53,0) -> $0 | M49: $5,000 | N49: $8,000 | O49: $11,000 | P49: $14,000
F50: Deferred income taxes | I50: =ROUND('Balance Sheet'!I54-'Balance Sheet'!H54,0) -> ($3,000) | J50: =ROUND('Balance Sheet'!J54-'Balance Sheet'!I54,0) -> $0 | K50: =ROUND('Balance Sheet'!K54-'Balance Sheet'!J54,0) -> $0 | L50: =ROUND('Balance Sheet'!L54-'Balance Sheet'!K54,0) -> $0 | M50: $1,500 | N50: $2,400 | O50: $3,300 | P50: $4,200
F51: Other long-term liabilities | I51: =ROUND('Balance Sheet'!I55-'Balance Sheet'!H55,0) -> $40,000 | J51: =ROUND('Balance Sheet'!J55-'Balance Sheet'!I55,0) -> ($50,000) | K51: =ROUND('Balance Sheet'!K55-'Balance Sheet'!J55,0) -> $0 | L51: =ROUND('Balance Sheet'!L55-'Balance Sheet'!K55,0) -> $0 | M51: ($20,000) | N51: ($27,000) | O51: ($34,000) | P51: ($41,000)
F52: =IF('Balance Sheet'!H68="y","Capital stock and paid in capital","Capital invested") -> Capital stock and paid in capital | I52: =ROUND(('Balance Sheet'!I60+'Balance Sheet'!I61)-('Balance Sheet'!H60+'Balance Sheet'!H61),0) -> $0 | J52: =ROUND(('Balance Sheet'!J60+'Balance Sheet'!J61)-('Balance Sheet'!I60+'Balance Sheet'!I61),0) -> $0 | K52: =ROUND(('Balance Sheet'!K60+'Balance Sheet'!K61)-('Balance Sheet'!J60+'Balance Sheet'!J61),0) -> $0 | L52: =ROUND(('Balance Sheet'!L60+'Balance Sheet'!L61)-('Balance Sheet'!K60+'Balance Sheet'!K61),0) -> $0 | M52: $0 | N52: $0 | O52: $0 | P52: $0
H54: Net cash from financing | I54: =ROUND(SUM(I47:I52),0) -> ($123,000) | J54: =ROUND(SUM(J47:J52),0) -> ($50,000) | K54: =ROUND(SUM(K47:K52),0) -> $0 | L54: =ROUND(SUM(L47:L52),0) -> $0 | M54: =FORECAST($M$15,I54:L54,$I$15:$L$15) -> $61,500 | N54: =FORECAST($N$15,I54:M54,$I$15:$M$15) -> $103,400 | O54: =FORECAST($O$15,I54:N54,$I$15:$N$15) -> $145,300 | P54: =FORECAST($P$15,I54:O54,$I$15:$O$15) -> $187,200
H56: Net increase (decrease) in cash | I56: =ROUND(I19+I34-I43+I54,0) -> ($360,640) | J56: =ROUND(J19+J34-J43+J54,0) -> $198,873 | K56: =ROUND(K19+K34-K43+K54,0) -> $324,963 | L56: =ROUND(L19+L34-L43+L54,0) -> $653,168 | M56: =FORECAST($M$15,I56:L56,$I$15:$L$15) -> $995,970 | N56: =FORECAST($N$15,I56:M56,$I$15:$M$15) -> $1,312,721 | O56: =FORECAST($O$15,I56:N56,$I$15:$N$15) -> $1,629,472 | P56: =FORECAST($P$15,I56:O56,$I$15:$O$15) -> $1,946,224
H58: Cash at beginning of period | I58: =ROUND('Balance Sheet'!H17,0) -> $451,000 | J58: =ROUND('Balance Sheet'!I17,0) -> $90,360 | K58: =ROUND('Balance Sheet'!J17,0) -> $289,233 | L58: =ROUND('Balance Sheet'!K17,0) -> $614,196 | M58: =FORECAST($M$15,I58:L58,$I$15:$L$15) -> $533,313 | N58: =FORECAST($N$15,I58:M58,$I$15:$M$15) -> $602,159 | O58: =FORECAST($O$15,I58:N58,$I$15:$N$15) -> $671,005 | P58: =FORECAST($P$15,I58:O58,$I$15:$O$15) -> $739,851
H60: Cash at the end of period | I60: =ROUND(SUM(I56:I58),0) -> $90,360 | J60: =ROUND(SUM(J56:J58),0) -> $289,233 | K60: =ROUND(SUM(K56:K58),0) -> $614,196 | L60: =ROUND(SUM(L56:L58),0) -> $1,267,364 | M60: =FORECAST($M$15,I60:L60,$I$15:$L$15) -> $1,529,282 | N60: =FORECAST($N$15,I60:M60,$I$15:$M$15) -> $1,914,880 | O60: =FORECAST($O$15,I60:N60,$I$15:$N$15) -> $2,300,477 | P60: =FORECAST($P$15,I60:O60,$I$15:$O$15) -> $2,686,075

Sheet Data Chart
D6: This sheet displays quarterly operating turnover information from the Data Sheet.

Sheet Asset Chart
D6: This sheet shows the distribution of assets per quarter for the company.

Sheet Income Chart
D6: This sheet displays the quarterly distribution of income for the company.
